fUSD/lending_fUSD_20250513
["ID","MTS","AMOUNT","RATE_DAILY","PERIOD"]
[360956130,1747162243562,-400.0,0.00010958,2]
[360956131,1747162243572,-400.0,0.00010958,2]
[360956132,1747162243581,-400.0,0.00010958,2]
[360956133,1747162243591,-5149.94,0.00010958,2]
[360956134,1747162243600,-408.08460597,0.00010958,2]
[360956135,1747162243609,-400.0,0.00010958,2]
[360956136,1747162243618,-400.0,0.00010958,2]
[360956137,1747162243627,-400.0,0.00010958,2]
[360956138,1747162243636,-400.0,0.00010958,2]
[360956139,1747162243647,-400.0,0.00010958,2]
[360956140,1747162243657,-400.0,0.00010958,2]
[360956141,1747162243666,-496.27,0.00010958,2]
[360956142,1747162243675,-3224.11,0.00010958,2]
[360956143,1747162243685,-388.37458625,0.00010958,2]
[360956144,1747162243694,-400.0,0.00010958,2]
[360956145,1747162243704,-379.82935875,0.00010958,2]
[360956146,1747162243713,-493.98,0.00010958,2]
[360956147,1747162243722,-400.0,0.00010958,2]
[360956148,1747162243732,-400.0,0.00010958,2]
[360956149,1747162243741,-477.79,0.00010958,2]
[360956150,1747162243750,-400.0,0.00010958,2]
[360956152,1747162243760,-539.49,0.00010958,2]
[360956154,1747162243769,-400.0,0.00010958,2]
[360956156,1747162243778,-400.0,0.00010958,2]
[360956158,1747162243787,-400.0,0.00010958,2]
[360956160,1747162243797,-400.0,0.00010958,2]
[360956162,1747162243806,-400.0,0.00010958,2]
[360956163,1747162243815,-2153.13,0.00010958,2]
[360956164,1747162243824,-447.69,0.00010958,2]
[360956165,1747162243833,-400.0,0.00010958,2]
[360956166,1747162243842,-400.0,0.00010958,2]
[360956167,1747162243852,-400.0,0.00010958,2]
[360956168,1747162243861,-400.0,0.00010958,2]
[360956169,1747162243870,-400.0,0.00010958,2]
[360956170,1747162243883,-400.0,0.00010958,2]
[360956171,1747162243892,-400.0,0.00010958,2]
[360956172,1747162243902,-675.17,0.00010958,2]
[360956173,1747162243911,-400.0,0.00010958,2]
[360956174,1747162243921,-400.0,0.00010958,2]
[360956175,1747162243930,-437.97,0.00010958,2]
[360956176,1747162243939,-1341.94,0.00010958,2]
[360956177,1747162243949,-400.0,0.00010958,2]
[360956178,1747162243959,-400.0,0.00010958,2]
[360956179,1747162243968,-502.44,0.00010958,2]
[360956180,1747162243977,-432.6,0.00010958,2]
[360956181,1747162243986,-400.0,0.00010958,2]
[360956182,1747162243995,-400.0,0.00010958,2]
[360956183,1747162244004,-400.0,0.00010958,2]
[360956184,1747162244014,-400.0,0.00010958,2]
[360956185,1747162244022,-586.42,0.00010958,2]
[360956186,1747162244031,-400.0,0.00010958,2]
[360956188,1747162244041,-1364.63,0.00010958,2]
[360956190,1747162244050,-661.83,0.00010958,2]
[360956192,1747162244059,-400.0,0.00010958,2]
[360956194,1747162244068,-400.0,0.00010958,2]
[360956196,1747162244078,-400.0,0.00010958,2]
[360956198,1747162244087,-400.0,0.00010958,2]
[360956200,1747162244096,-400.0,0.00010958,2]
[360956202,1747162244105,-400.0,0.00010958,2]
[360956204,1747162244115,-500.0,0.00010959,2]
[360956206,1747162244125,-500.0,0.00010959,2]
[360956208,1747162244134,-500.0,0.00010959,2]
[360956210,1747162244144,-500.0,0.00010959,2]
[360956212,1747162244153,-500.0,0.00010959,2]
[360956213,1747162244163,-500.0,0.00010959,2]
[360956215,1747162244172,-500.0,0.00010959,2]
[360956216,1747162244181,-500.0,0.00010959,2]
[360956218,1747162244190,-500.0,0.00010973,2]
[360956219,1747162244200,-500.0,0.00010973,2]
[360956221,1747162244209,-456.82488499,0.00010973,2]
[360956223,1747162244219,-167.8533398,0.00010973,2]
[360956225,1747162244228,-500.0,0.00010973,2]
[360956226,1747162244238,-500.69101784,0.00010973,2]
[360956228,1747162244248,-500.0,0.00010973,2]
[360956230,1747162244258,-500.0,0.00010973,2]
[360956232,1747162244267,-500.0,0.00010973,2]
[360956233,1747162244276,-500.0,0.00010973,2]
[360956235,1747162244285,-200.0,0.00010975,2]
[360956237,1747162244295,-200.0,0.00010976,2]
[360956238,1747162244305,-200.0,0.00010977,2]
[360956240,1747162244314,-250.0,0.00010985,2]
[360956242,1747162244324,-171.1231244,0.0001099,2]
[360956243,1747162244334,-171.1231244,0.0001099,2]
[360956245,1747162244343,-400.0,0.00010993,2]
[360956247,1747162244356,-400.0,0.00010993,2]
[360956249,1747162244371,-400.0,0.00010993,2]
[360956251,1747162244381,-400.0,0.00010993,2]
[360956252,1747162244390,-400.0,0.00010993,2]
[360956254,1747162244399,-400.0,0.00010993,2]
[360956256,1747162244410,-400.0,0.00010993,2]
[360956258,1747162244419,-400.0,0.00010993,2]
[360956259,1747162244428,-400.0,0.00010993,2]
[360956261,1747162244438,-400.0,0.00010993,2]
[360956263,1747162244447,-1028.81,0.00010993,2]
[360956264,1747162244457,-400.0,0.00010993,2]
[360956266,1747162244466,-400.0,0.00010993,2]
[360956268,1747162244476,-400.0,0.00010993,2]
[360956270,1747162244485,-400.0,0.00010993,2]
[360956272,1747162244496,-400.0,0.00010993,2]
[360956274,1747162244506,-400.0,0.00010993,2]
[360956275,1747162244515,-400.0,0.00010993,2]
[360956277,1747162244524,-400.0,0.00010993,2]
[360956279,1747162244534,-695.16,0.00010993,2]
[360956280,1747162244543,-1000.0,0.00010993,2]
[360956282,1747162244554,-400.0,0.00010993,2]
[360956284,1747162244563,-400.0,0.00010993,2]
[360956286,1747162244573,-400.0,0.00010993,2]
[360956287,1747162244582,-400.0,0.00010993,2]
[360956289,1747162244591,-400.0,0.00010993,2]
[360956291,1747162244601,-400.0,0.00010993,2]
[360956292,1747162244610,-400.0,0.00010993,2]
[360956294,1747162244620,-400.0,0.00010999,2]
[360956296,1747162244629,-400.0,0.00010999,2]
[360956297,1747162244638,-400.0,0.00010999,2]
[360956299,1747162244648,-400.0,0.00010999,2]
[360956301,1747162244658,-400.0,0.00010999,2]
[360956303,1747162244667,-400.0,0.00010999,2]
[360956320,1747162244859,-400.0,0.00010999,2]
[360956321,1747162244870,-400.0,0.00010999,2]
[360956323,1747162244880,-400.0,0.00010999,2]
[360956325,1747162244894,-4860.66,0.00010999,2]
[360956327,1747162244905,-400.0,0.00010999,2]
[360956328,1747162244914,-400.0,0.00010999,2]
[360956330,1747162244923,-1549.13,0.00010999,2]
[360956332,1747162244934,-400.0,0.00010999,2]
[360956334,1747162244943,-417.5,0.00010999,2]
[360956335,1747162244952,-15709.09,0.00010999,2]
[360956337,1747162244963,-671.44,0.00010999,2]
[360956339,1747162244972,-4858.22,0.00010999,2]
[360956341,1747162244981,-400.0,0.00010999,2]
[360956343,1747162244990,-9627.24,0.00010999,2]
[360956344,1747162245001,-6789.33,0.00010999,2]
[360956346,1747162245010,-593.69,0.00010999,2]
[360956348,1747162245020,-400.0,0.00010999,2]
[360956349,1747162245029,-3020.21,0.00010999,2]
[360956351,1747162245039,-400.0,0.00010999,2]
[360956352,1747162245048,-400.0,0.00010999,2]
[360956354,1747162245059,-684.50159211,0.00011,2]
[360956356,1747162245068,-369798.32162191,0.00011,2]
[360956359,1747162245099,-1711.199059,0.00011,2]
[360956398,1747162245608,-500.0,9.975e-05,2]
[360956400,1747162245617,-400.0,0.00010958,2]
[360956401,1747162245627,-30060.55143175,0.00011,2]
[360956406,1747162245666,-286735.83956718,0.00011,2]
[360956407,1747162245678,-1000.0,0.00011,2]
[360956409,1747162245690,-919.87479976,0.00011,2]
[360956412,1747162245709,-4032.71134052,0.00011,2]
[360956414,1747162245720,-1010.01267846,0.00011,2]
[360956416,1747162245731,-2228.90697519,0.00011,2]
[360956417,1747162245742,-17335.38929171,0.00011,2]
[360956420,1747162245761,-562285.86473025,0.00011,2]
[360956422,1747162245771,-4835082.73755655,0.00011,2]
[360956452,1747162246145,-854.6887325,0.00011,2]
[360956454,1747162246156,-410.52277386,0.00011,2]
[360956456,1747162246172,-800.82437286,0.00011,2]
[360956458,1747162246184,-333314.55733821,0.00011,2]
[360956460,1747162246199,-244948.9673945,0.00011,2]
[360956462,1747162246211,-2618.15682664,0.00011,2]
[360956464,1747162246222,-317446.10984522,0.00011,2]
[360956467,1747162246245,-400.0,0.00010958,2]
[360956469,1747162246254,-70430.12692514,0.00011,2]
[360956470,1747162246264,-432.9585783,0.00011,2]
[360956472,1747162246273,-207813.4621783,0.00011,2]
[360956490,1747162246496,-3996.99999943,0.00011,2]
[360956492,1747162246507,-620.0,0.00011,2]
[360956521,1747162246890,-400.0,0.00010958,2]
[360956523,1747162246899,-1462.08617678,0.00011,2]
[360956525,1747162246910,-1869.57692506,0.00011,2]
[360956526,1747162246923,-8154.704015,0.00011,2]
[360956532,1747162246981,-1024.8999999,0.00011,2]
[360956534,1747162246994,-15130.10215781,0.00011,2]
[360956536,1747162247005,-10420.00000001,0.00011,2]
[360956540,1747162247048,-7813.2023542,0.00011,2]
[360956541,1747162247059,-52661.3268486,0.00011,2]
[360957183,1747162291111,412.34,8.395e-05,2]
[360957184,1747162932073,936.0,0.00028,120]
[360957186,1747163100774,-261.62682,9.948e-05,2]
[360957187,1747163100804,-500.0,9.997e-05,2]
[360957188,1747163100834,-500.0,9.997e-05,2]
[360957189,1747163100866,-500.0,9.997e-05,2]
[360957190,1747163100895,-198.86827167,9.997e-05,2]
[360957191,1747163100922,-500.0,9.997e-05,2]
[360957192,1747163100949,-500.0,9.997e-05,2]
[360957193,1747163100977,-500.0,9.997e-05,2]
[360957194,1747163101006,-500.0,9.997e-05,2]
[360957195,1747163101033,-500.0,9.997e-05,2]
[360957196,1747163101060,-500.0,9.997e-05,2]
[360957197,1747163101089,-500.0,9.997e-05,2]
[360957198,1747163101117,-500.0,9.997e-05,2]
[360957199,1747163101141,-150.0,9.998e-05,2]
[360957200,1747163101167,-250.0,9.999e-05,2]
[360957201,1747163101192,-450.0,0.0001,2]
[360957202,1747163101216,-250.0,0.00010083,2]
[360957203,1747163101242,-300.0,0.00010129,2]
[360957204,1747163101268,-23900.0,0.00010132,2]
[360957205,1747163101293,-939.46,0.00010155,2]
[360957206,1747163101794,800.04490833,9.996e-05,2]
[360957207,1747163155762,-399.95509167,9.996e-05,2]
[360957208,1747163193417,-342.02339911,0.00010141,2]
[360957209,1747163193439,-1000.0,0.00010241,2]
[360957210,1747163193461,-412.34,0.00010659,2]
[360957211,1747163193482,-300.0,0.00010857,2]
[360957212,1747163193504,-150.0,0.00010857,2]
[360957213,1747163193526,-2653.27312244,0.00010858,2]
[360957242,1747163432514,-162.14,0.00010233,2]
[360957243,1747163432523,-311.2,0.00010244,2]
[360957244,1747163432532,-30.35050233,0.00010857,2]
[360957245,1747163432543,-119.64949767,0.00010857,2]
[360957246,1747163432552,-360.0,0.00010857,2]
[360957247,1747163432561,-2531.14807756,0.00010858,2]
[360957248,1747163432571,-38471.3965,0.00010858,2]
[360957249,1747163432580,-250.2855,0.00010858,2]
[360957250,1747163432590,-164.02476892,0.000109,2]
[360957251,1747163432599,-165.76263747,0.000109,2]
[360957252,1747163432609,-164.1,0.00010948,2]
[360957253,1747163432619,-1195.314024,0.00010958,2]
[360957254,1747163432629,-162.844532,0.00010958,2]
[360957255,1747163432638,-400.0,0.00010958,2]
[360957256,1747163432647,-400.0,0.00010958,2]
[360957258,1747163432657,-400.0,0.00010958,2]
[360957259,1747163432667,-400.0,0.00010958,2]
[360957261,1747163432676,-400.0,0.00010958,2]
[360957263,1747163432686,-400.0,0.00010958,2]
[360957265,1747163432695,-400.0,0.00010958,2]
[360957266,1747163432704,-400.0,0.00010958,2]
[360957268,1747163432713,-400.0,0.00010958,2]
[360957270,1747163432722,-400.0,0.00010958,2]
[360957272,1747163432731,-400.0,0.00010958,2]
[360957273,1747163432740,-400.0,0.00010958,2]
[360957275,1747163432749,-400.0,0.00010958,2]
[360957277,1747163432759,-400.0,0.00010958,2]
[360957279,1747163432768,-400.0,0.00010958,2]
[360957280,1747163432777,-400.0,0.00010958,2]
[360957282,1747163432786,-400.0,0.00010958,2]
[360957284,1747163432795,-400.0,0.00010958,2]
[360957286,1747163432806,-267.50454384,0.00010958,2]
[360957288,1747163432818,-132.49545616,0.00010958,2]
[360957289,1747163432827,-400.0,0.00010958,2]
[360957291,1747163432836,-400.0,0.00010958,2]
[360957293,1747163432845,-400.0,0.00010958,2]
[360957294,1747163432854,-400.0,0.00010958,2]
[360957296,1747163432864,-400.0,0.00010958,2]
[360957298,1747163432873,-400.0,0.00010958,2]
[360957300,1747163432884,-400.0,0.00010958,2]
[360957302,1747163432893,-293.64017147,0.00010958,2]
[360957303,1747163432902,-400.0,0.00010958,2]
[360957305,1747163432911,-400.0,0.00010958,2]
[360957307,1747163432920,-400.0,0.00010958,2]
[360957309,1747163432929,-400.0,0.00010958,2]
[360957310,1747163432938,-400.0,0.00010958,2]
[360957312,1747163432947,-400.0,0.00010958,2]
[360957314,1747163432957,-400.0,0.00010958,2]
[360957316,1747163432966,-400.0,0.00010958,2]
[360957317,1747163432975,-400.0,0.00010958,2]
[360957319,1747163432985,-400.0,0.00010958,2]
[360957321,1747163432994,-301.16437233,0.00010958,2]
[360957323,1747163433006,-98.83562767,0.00010958,2]
[360957325,1747163433016,-400.0,0.00010958,2]
[360957327,1747163433025,-120.73701524,0.00010958,2]
[360957329,1747163433037,-791.67298476,0.00010958,2]
[360957330,1747163433047,-400.0,0.00010958,2]
[360957332,1747163433057,-400.0,0.00010958,2]
[360957334,1747163433067,-400.0,0.00010958,2]
[360957335,1747163433077,-400.0,0.00010958,2]
[360957337,1747163433086,-400.0,0.00010958,2]
[360957339,1747163433096,-400.0,0.00010958,2]
[360957341,1747163433105,-400.0,0.00010958,2]
[360957343,1747163433114,-400.0,0.00010958,2]
[360957344,1747163433124,-335.67293979,0.00010958,2]
[360957346,1747163433133,-400.0,0.00010958,2]
[360957348,1747163433143,-400.0,0.00010958,2]
[360957350,1747163433152,-400.0,0.00010958,2]
[360957351,1747163433162,-400.0,0.00010958,2]
[360957353,1747163433172,-400.0,0.00010958,2]
[360957355,1747163433182,-286.82795126,0.00010958,2]
[360957357,1747163433191,-400.0,0.00010958,2]
[360957359,1747163433201,-400.0,0.00010958,2]
[360957360,1747163433210,-400.0,0.00010958,2]
[360957362,1747163433220,-400.0,0.00010958,2]
[360957364,1747163433229,-400.0,0.00010958,2]
[360957366,1747163433238,-400.0,0.00010958,2]
[360957367,1747163433247,-400.0,0.00010958,2]
[360957369,1747163433257,-400.0,0.00010958,2]
[360957371,1747163433269,-400.0,0.00010958,2]
[360957373,1747163433278,-400.0,0.00010958,2]
[360957375,1747163433287,-400.0,0.00010958,2]
[360957376,1747163433297,-400.0,0.00010958,2]
[360957378,1747163433306,-400.0,0.00010958,2]
[360957380,1747163433317,-400.0,0.00010958,2]
[360957382,1747163433326,-400.0,0.00010958,2]
[360957384,1747163433336,-400.0,0.00010958,2]
[360957385,1747163433345,-400.0,0.00010958,2]
[360957387,1747163433356,-400.0,0.00010958,2]
[360957389,1747163433365,-400.0,0.00010958,2]
[360957391,1747163433376,-400.0,0.00010958,2]
[360957393,1747163433386,-400.0,0.00010958,2]
[360957395,1747163433395,-400.0,0.00010958,2]
[360957396,1747163433405,-400.0,0.00010958,2]
[360957398,1747163433415,-400.0,0.00010958,2]
[360957400,1747163433424,-400.0,0.00010958,2]
[360957402,1747163433434,-400.0,0.00010958,2]
[360957404,1747163433443,-400.0,0.00010958,2]
[360957405,1747163433453,-400.0,0.00010958,2]
[360957407,1747163433462,-979.87,0.00010958,2]
[360957409,1747163433473,-400.0,0.00010958,2]
[360957411,1747163433482,-400.0,0.00010958,2]
[360957413,1747163433492,-400.0,0.00010958,2]
[360957415,1747163433501,-400.0,0.00010958,2]
[360957416,1747163433511,-400.0,0.00010958,2]
[360957418,1747163433520,-400.0,0.00010958,2]
[360957420,1747163433530,-400.0,0.00010958,2]
[360957422,1747163433540,-789.1,0.00010958,2]
[360957424,1747163433550,-400.0,0.00010958,2]
[360957426,1747163433560,-400.0,0.00010958,2]
[360957428,1747163433570,-419.72,0.00010958,2]
[360957430,1747163433580,-400.0,0.00010958,2]
[360957432,1747163433591,-400.0,0.00010958,2]
[360957433,1747163433600,-400.0,0.00010958,2]
[360957434,1747163433609,-400.0,0.00010958,2]
[360957435,1747163433618,-434.51,0.00010958,2]
[360957436,1747163433628,-498.63,0.00010958,2]
[360957437,1747163433638,-1307.77,0.00010958,2]
[360957438,1747163433648,-400.0,0.00010958,2]
[360957439,1747163433657,-400.0,0.00010958,2]
[360957440,1747163433667,-400.0,0.00010958,2]
[360957441,1747163433676,-400.0,0.00010958,2]
[360957442,1747163433685,-400.0,0.00010958,2]
[360957443,1747163433695,-400.0,0.00010958,2]
[360957444,1747163433704,-400.0,0.00010958,2]
[360957445,1747163433714,-400.0,0.00010958,2]
[360957446,1747163433724,-400.0,0.00010958,2]
[360957447,1747163433734,-400.0,0.00010958,2]
[360957448,1747163433744,-290.03794811,0.00010958,2]
[360957449,1747163433753,-448.26163747,0.00010958,2]
[360957450,1747163433764,-400.0,0.00010958,2]
[360957451,1747163433774,-400.0,0.00010958,2]
[360957452,1747163433784,-500.0,0.00010958,2]
[360957453,1747163433794,-400.0,0.00010958,2]
[360957454,1747163433804,-400.0,0.00010958,2]
[360957455,1747163433814,-400.0,0.00010958,2]
[360957456,1747163433823,-1193.0,0.00010958,2]
[360957457,1747163433832,-400.0,0.00010958,2]
[360957458,1747163433841,-400.0,0.00010958,2]
[360957459,1747163433851,-400.0,0.00010958,2]
[360957460,1747163433862,-481.51,0.00010958,2]
[360957461,1747163433872,-689.66,0.00010958,2]
[360957462,1747163433881,-400.0,0.00010958,2]
[360957463,1747163433891,-400.0,0.00010958,2]
[360957464,1747163433902,-400.0,0.00010958,2]
[360957465,1747163433912,-400.0,0.00010958,2]
[360957466,1747163433922,-400.0,0.00010958,2]
[360957467,1747163433932,-589.31,0.00010958,2]
[360957468,1747163433942,-2178.06,0.00010958,2]
[360957469,1747163433952,-400.0,0.00010958,2]
[360957470,1747163433962,-400.0,0.00010958,2]
[360957471,1747163433972,-400.0,0.00010958,2]
[360957472,1747163433981,-400.0,0.00010958,2]
[360957473,1747163433991,-400.0,0.00010958,2]
[360957474,1747163434000,-400.0,0.00010958,2]
[360957475,1747163434009,-400.0,0.00010958,2]
[360957476,1747163434019,-499.64683336,0.00010958,2]
[360957477,1747163434028,-400.0,0.00010958,2]
[360957479,1747163434038,-400.0,0.00010958,2]
[360957480,1747163434047,-400.0,0.00010958,2]
[360957481,1747163434059,-400.0,0.00010958,2]
[360957483,1747163434067,-400.0,0.00010958,2]
[360957484,1747163434077,-400.0,0.00010958,2]
[360957485,1747163434086,-1689.0,0.00010958,2]
[360957486,1747163434096,-400.0,0.00010958,2]
[360957488,1747163434106,-263.35181385,0.00010958,2]
[360957489,1747163434115,-400.0,0.00010958,2]
[360957491,1747163434124,-400.0,0.00010958,2]
[360957493,1747163434133,-400.0,0.00010958,2]
[360957495,1747163434142,-400.0,0.00010958,2]
[360957497,1747163434152,-400.0,0.00010958,2]
[360957499,1747163434161,-400.0,0.00010958,2]
[360957501,1747163434170,-201.55342923,0.00010958,2]
[360957510,1747163434250,-313.85568221,0.00010958,2]
[360957512,1747163434260,-527.05,0.00010958,2]
[360957514,1747163434274,-476.89,0.00010958,2]
[360957516,1747163434284,-94.40431929,0.00010958,2]
[360957525,1747163434358,-356.39,0.00010238,2]
[360957527,1747163434369,-276.81758574,0.00010238,2]
[360957529,1747163434379,-305.59568071,0.00010958,2]
[360957531,1747163434388,-400.0,0.00010958,2]
[360957533,1747163434397,-400.0,0.00010958,2]
[360957535,1747163434407,-400.0,0.00010958,2]
[360957537,1747163434417,-2198.72,0.00010958,2]
[360957539,1747163434426,-400.0,0.00010958,2]
[360957541,1747163434435,-400.0,0.00010958,2]
[360957543,1747163434444,-1447.34,0.00010958,2]
[360957545,1747163434453,-649.74,0.00010958,2]
[360957546,1747163434463,-400.0,0.00010958,2]
[360957548,1747163434473,-400.0,0.00010958,2]
[360957550,1747163434482,-401.76,0.00010958,2]
[360957552,1747163434492,-400.0,0.00010958,2]
[360957554,1747163434502,-400.0,0.00010958,2]
[360957557,1747163434513,-400.0,0.00010958,2]
[360957559,1747163434523,-400.0,0.00010958,2]
[360957561,1747163434532,-587.84,0.00010958,2]
[360957562,1747163434542,-400.0,0.00010958,2]
[360957564,1747163434551,-400.0,0.00010958,2]
[360957566,1747163434560,-400.0,0.00010958,2]
[360957568,1747163434570,-400.0,0.00010958,2]
[360957570,1747163434579,-400.0,0.00010958,2]
[360957572,1747163434589,-400.0,0.00010958,2]
[360957574,1747163434599,-1300.1,0.00010958,2]
[360957576,1747163434608,-400.0,0.00010958,2]
[360957578,1747163434618,-400.0,0.00010958,2]
[360957580,1747163434627,-400.0,0.00010958,2]
[360957582,1747163434636,-680.09,0.00010958,2]
[360957584,1747163434646,-400.0,0.00010958,2]
[360957586,1747163434655,-400.0,0.00010958,2]
[360957588,1747163434664,-400.0,0.00010958,2]
[360957590,1747163434674,-400.0,0.00010958,2]
[360957592,1747163434684,-1245.42,0.00010958,2]
[360957594,1747163434693,-400.0,0.00010958,2]
[360957596,1747163434702,-400.0,0.00010958,2]
[360957598,1747163434711,-400.0,0.00010958,2]
[360957600,1747163434721,-400.0,0.00010958,2]
[360957602,1747163434730,-400.0,0.00010958,2]
[360957604,1747163434739,-400.0,0.00010958,2]
[360957606,1747163434748,-400.0,0.00010958,2]
[360957608,1747163434758,-1111.94,0.00010958,2]
[360957609,1747163434767,-400.0,0.00010958,2]
[360957611,1747163434777,-400.0,0.00010958,2]
[360957614,1747163434787,-400.0,0.00010958,2]
[360957615,1747163434797,-400.0,0.00010958,2]
[360957617,1747163434807,-724.24,0.00010958,2]
[360957620,1747163434817,-400.0,0.00010958,2]
[360957622,1747163434826,-400.0,0.00010958,2]
[360957624,1747163434837,-487.68535469,0.00010958,2]
[360957626,1747163434846,-400.0,0.00010958,2]
[360957628,1747163434856,-400.0,0.00010958,2]
[360957630,1747163434865,-400.0,0.00010958,2]
[360957632,1747163434875,-400.0,0.00010958,2]
[360957634,1747163434884,-400.0,0.00010958,2]
[360957636,1747163434893,-400.0,0.00010958,2]
[360957638,1747163434903,-400.0,0.00010958,2]
[360957640,1747163434912,-400.0,0.00010958,2]
[360957642,1747163434922,-1176.58,0.00010958,2]
[360957644,1747163434931,-400.0,0.00010958,2]
[360957646,1747163434940,-175.95437885,0.00010958,2]
[360957656,1747163435029,-224.04562115,0.00010958,2]
[360957658,1747163435038,-400.0,0.00010958,2]
[360957660,1747163435048,-400.0,0.00010958,2]
[360957662,1747163435058,-400.0,0.00010958,2]
[360957664,1747163435067,-400.0,0.00010958,2]
[360957666,1747163435076,-1056.0,0.00010958,2]
[360957668,1747163435086,-400.0,0.00010958,2]
[360957670,1747163435095,-400.0,0.00010958,2]
[360957672,1747163435104,-400.0,0.00010958,2]
[360957674,1747163435113,-400.0,0.00010958,2]
[360957676,1747163435123,-400.0,0.00010958,2]
[360957678,1747163435131,-400.0,0.00010958,2]
[360957680,1747163435140,-400.0,0.00010958,2]
[360957682,1747163435150,-400.0,0.00010958,2]
[360957684,1747163435159,-400.0,0.00010958,2]
[360957686,1747163435168,-643.22,0.00010958,2]
[360957687,1747163435177,-509.61126576,0.00010958,2]
[360957954,1747163438160,-294.22873424,0.00010958,2]
[360957956,1747163438170,-400.0,0.00010958,2]
[360957958,1747163438180,-2000.0,0.00010958,2]
[360957960,1747163438189,-400.0,0.00010958,2]
[360957962,1747163438198,-400.0,0.00010958,2]
[360957983,1747163438418,-400.0,0.00010958,2]
[360957985,1747163438429,-400.0,0.00010958,2]
[360957987,1747163438438,-400.0,0.00010958,2]
[360957989,1747163438448,-400.0,0.00010958,2]
[360957991,1747163438457,-400.0,0.00010958,2]
[360957993,1747163438467,-400.0,0.00010958,2]
[360957995,1747163438476,-1666.21,0.00010958,2]
[360957997,1747163438485,-400.0,0.00010958,2]
[360957999,1747163438495,-648.21,0.00010958,2]
[360958001,1747163438504,-400.0,0.00010958,2]
[360958002,1747163438513,-400.0,0.00010958,2]
[360958004,1747163438522,-550.66,0.00010958,2]
[360958006,1747163438533,-400.0,0.00010958,2]
[360958009,1747163438542,-400.0,0.00010958,2]
[360958011,1747163438551,-400.0,0.00010958,2]
[360958014,1747163438560,-400.0,0.00010958,2]
[360958016,1747163438569,-400.0,0.00010958,2]
[360958018,1747163438578,-1156.58,0.00010958,2]
[360958019,1747163438587,-400.0,0.00010958,2]
[360958021,1747163438596,-400.0,0.00010958,2]
[360958023,1747163438606,-400.0,0.00010958,2]
[360958025,1747163438616,-400.0,0.00010958,2]
[360958027,1747163438625,-400.0,0.00010958,2]
[360958029,1747163438634,-400.0,0.00010958,2]
[360958031,1747163438643,-400.0,0.00010958,2]
[360958033,1747163438652,-582.02,0.00010958,2]
[360958035,1747163438661,-400.0,0.00010958,2]
[360958037,1747163438671,-511.57,0.00010958,2]
[360958039,1747163438680,-499.82,0.00010958,2]
[360958040,1747163438689,-400.0,0.00010958,2]
[360958042,1747163438698,-496.97416648,0.00010958,2]
[360958044,1747163438707,-400.0,0.00010958,2]
[360958046,1747163438717,-400.0,0.00010958,2]
[360958048,1747163438726,-400.0,0.00010958,2]
[360958049,1747163438736,-1373.02,0.00010958,2]